bitfinex-derivatives/quotes_SOLF0:USTF0_20241029
["timestamp","ask_amount","ask_price","bid_price","bid_amount"]
[1730199457448,6.6826,181.09,181.06,2.763]
[1730199458239,3.92,181.09,181.06,2.763]
[1730199458439,3.92,181.09,181.07,2.7628]
[1730199460344,3.92,181.09,181.06,2.763]
[1730199460546,3.92,181.09,181.05,5.93941466]
[1730199461533,3.92,181.09,181.07,2.7627]
[1730199462942,3.92,181.09,181.05,5.93941466]
[1730199463144,2.5012,181.13,181.1,2.7623]
[1730199463343,3.92,181.12,181.1,2.7623]
[1730199464246,4.0631,181.13,181.1,2.7623]
[1730199464447,3.92,181.12,181.1,2.7623]
[1730199464948,9.85941466,181.12,181.04,79.29100332]
[1730199465144,12.62161466,181.12,181.06,5.93941466]
[1730199466149,12.62161466,181.12,181.09,2.7624]
[1730199469850,12.62161466,181.12,181.06,5.93941466]
[1730199470051,12.62161466,181.12,181.1,2.7624]
[1730199471247,9.85941466,181.12,181.08,5.93941466]
[1730199471448,3.92,181.12,181.11,2.7622]
[1730199493961,2.7615,181.16,181.14,2.7617]
[1730199494165,9.85941466,181.15,181.14,2.7617]
[1730199494862,9.85941466,181.15,181.13,2.7619]
[1730199496170,9.85941466,181.15,181.14,2.7618]
[1730199496665,9.85941466,181.15,181.05,6.7218]
[1730199496866,9.85941466,181.15,181.13,2.7619]
[1730199497365,5.93941466,181.14,181.13,2.7619]
[1730199499565,5.93941466,181.14,181.09,5.93941466]
[1730199499566,5.93941466,181.14,181.11,2.7622]
[1730199500159,8.70121466,181.14,181.12,2.7621]
[1730199503665,5.93941466,181.14,181.12,2.7621]
[1730199504259,6.6817,181.15,181.12,2.7621]
[1730199504665,12.62111466,181.15,181.12,2.7621]
[1730199505470,8.70081466,181.17,181.14,2.7618]
[1730199505672,5.93941466,181.17,181.1,5.93941466]
[1730199505972,3.92,181.16,181.1,5.93941466]
[1730199506360,3.92,181.16,181.15,2.7616]
[1730199506566,3.92,181.16,181.15,2.72471554]
[1730199507570,5.93941466,181.17,181.15,2.72471554]
[1730199507770,65.61941466,181.2,181.15,5.93941466]
[1730199507972,65.61941466,181.2,181.16,5.93941466]
[1730199508172,3.92,181.19,181.16,5.93941466]
[1730199508375,3.92,181.19,181.18,2.7612]
[1730199511064,2.7603,181.24,181.21,2.7607]
[1730199511268,3.92,181.23,181.21,2.7607]
[1730199512476,3.92,181.23,181.2,2.7608]
[1730199513272,6.6804,181.23,181.2,2.7608]
[1730199514685,3.92,181.23,181.2,2.7608]
[1730199515576,6.6804,181.23,181.2,2.7608]
[1730199515982,3.92,181.23,181.19,5.93941466]
[1730199517081,3.92,181.23,181.21,2.7606]
[1730199517589,5.2674,181.26,181.21,5.93941466]
[1730199517785,3.92,181.25,181.21,5.93941466]
[1730199518287,3.92,181.24,181.21,5.93941466]
[1730199519180,3.92,181.24,181.23,2.7604]
[1730199521088,3.92,181.24,181.15,346.5073]
[1730199521288,6.6803,181.24,181.21,2.7606]
[1730199522681,6.6803,181.24,181.19,5.93941466]
[1730199523788,6.6803,181.24,181.21,2.7606]
[1730199524291,3.92,181.24,181.19,5.93941466]
[1730199524493,3.92,181.24,181.23,2.7604]
[1730199524689,3.92,181.24,181.21,5.93941466]
[1730199525092,6.6803,181.24,181.22,2.7605]
[1730199527595,3.92,181.24,181.22,2.7605]
[1730199527791,3.92,181.24,181.21,5.93941466]
[1730199527999,3.92,181.24,181.23,2.7604]
[1730199528199,3.92,181.24,181.23,8.69981466]
[1730199529698,3.92,181.26,181.25,2.7601]
[1730199535003,59.66,181.29,181.27,2.7598]
[1730199535004,62.4196,181.29,181.27,2.7598]
[1730199535299,3.92,181.28,181.27,2.7598]
[1730199537914,59.66,181.29,181.26,5.93941466]
[1730199538110,3.92,181.28,181.27,8.69901466]
[1730199538710,4.0596,181.31,181.27,8.69901466]
[1730199538911,3.92,181.3,181.27,8.69901466]
[1730199539111,6.6793,181.3,181.27,8.69901466]
[1730199540411,6.6793,181.3,181.27,5.93941466]
[1730199540612,3.92,181.3,181.29,2.7595]
[1730199540811,3.95160676,181.35,181.28,5.93941466]
[1730199541012,3.92,181.34,181.3,5.93941466]
[1730199541211,5.93941466,181.32,181.21,2.5766]
[1730199541712,3.92,181.34,181.21,2.5766]
[1730199541713,2.7596,181.29,181.26,2.7598]
[1730199541923,3.92,181.28,181.26,2.7598]
[1730199542413,3.92,181.28,181.27,2.7598]
[1730199545706,3.92,181.28,181.26,2.7599]
[1730199546922,3.92,181.28,181.25,5.93941466]
[1730199547220,2.7599,181.27,181.24,2.7602]
[1730199547607,2.7599,181.26,181.24,2.7602]
[1730199549217,2.7598,181.27,181.24,2.7602]
[1730199549426,2.7598,181.27,181.23,5.93941466]
[1730199549724,2.7598,181.27,181.25,2.76]
[1730199561729,3.92,181.28,181.23,2.7603]
[1730199562133,2.76,181.26,181.24,2.7602]
[1730199564034,2.7606,181.22,181.19,2.7609]
[1730199564439,9.85941466,181.23,181.18,5.93941466]
[1730199564633,2.7608,181.21,181.17,5.93941466]
[1730199564933,3.92,181.23,181.17,5.93941466]
[1730199565139,2.7086464,181.25,181.2,5.93941466]
[1730199565325,3.92,181.24,181.22,5.93941466]
[1730199565733,3.92,181.24,181.22,8.69991466]
[1730199567239,6.6802,181.24,181.22,2.7605]
[1730199567941,2.7606,181.22,181.19,2.7609]
[1730199568142,9.85941466,181.24,181.19,2.7609]
[1730199568935,2.7606,181.22,181.19,2.7609]
[1730199569136,2.7606,181.22,181.19,8.70031466]
[1730199570948,2.7604,181.23,181.19,5.93941466]
[1730199571837,2.7604,181.23,181.2,2.7607]
[1730199572737,3.92,181.24,181.14,1.2696]
[1730199573046,2.7606,181.22,181.19,2.7609]
[1730199573449,3.92,181.24,181.19,2.7609]
[1730199573744,2.7607,181.21,181.19,2.7609]
[1730199573947,3.92,181.2,181.19,2.7609]
[1730199574254,3.92,181.2,181.14,1.2696]
[1730199574552,6.681,181.2,181.18,2.7611]
[1730199574737,3.92,181.2,181.18,2.7611]
[1730199575338,3.92,181.2,181.17,5.93941466]
[1730199575538,3.92,181.2,181.19,2.761]
[1730199579551,3.92,181.2,181.18,2.7611]
[1730199580754,3.92,181.2,181.19,2.761]
[1730199581551,6.6809,181.2,181.18,2.7611]
[1730199583049,2.7614,181.17,181.14,2.7617]
[1730199583257,3.92,181.16,181.12,86.17969112]
[1730199583650,3.92,181.16,181.15,2.7616]
[1730199592753,3.92,181.16,181.15,8.70101466]
[1730199594163,2.761,181.19,181.17,2.7613]
[1730199594363,3.92,181.18,181.17,2.7613]
[1730199600475,9.85941466,181.18,181.08,1.1782]
[1730199600766,5.93941466,181.16,181.1,5.93941466]
[1730199600973,1.2395,181.2,181.13,5.93941466]
[1730199601164,3.92,181.19,181.13,5.93941466]
[1730199601364,3.92,181.19,181.15,5.93941466]
[1730199601670,2.7613,181.18,181.15,8.70101466]
[1730199601968,2.7613,181.18,181.15,5.93941466]
[1730199602167,6.6811,181.19,181.16,2.7614]
[1730199602371,3.92,181.19,181.16,2.7614]
[1730199602670,3.92,181.18,181.17,2.7612]
[1730199603172,3.92,181.18,181.16,8.70081466]
[1730199603366,3.92,181.18,181.14,5.93941466]
[1730199603778,9.85941466,181.18,181.12,5.93941466]
[1730199603970,5.93941466,181.17,181.11,5.93941466]
[1730199604166,5.93941466,181.15,181.07,1.2948]
[1730199604366,3.92,181.14,181.02,1.3077]
[1730199604673,3.92,181.14,181.09,5.93941466]
[1730199605372,2.762,181.13,181.1,2.7624]
[1730199609370,2.7621,181.12,181.07,2.7628]
[1730199609565,2.7621,181.12,181.08,5.93941466]
[1730199610076,2.7621,181.12,181.09,2.7624]
[1730199611579,2.7621,181.12,181.09,2.7625]
[1730199612477,2.7621,181.12,181.1,2.7624]
[1730199617285,5.1226,181.14,181.08,5.93941466]
[1730199617476,11.06201466,181.14,181.09,5.93941466]
[1730199617672,3.92,181.13,181.1,5.93941466]
[1730199618189,3.92,181.13,181.12,2.7621]
[1730199621180,3.92,181.13,181.12,8.70151466]
[1730199621889,2.7614,181.17,181.14,2.7617]
[1730199622087,3.92,181.16,181.14,2.7617]
[1730199622889,1.2944,181.2,181.15,2.7616]
[1730199623091,1.2944,181.2,181.14,5.93941466]
[1730199623092,3.92,181.19,181.14,5.93941466]
[1730199623390,3.92,181.19,181.15,2.7615]
[1730199623596,2.7612,181.18,181.15,2.7615]
[1730199623894,3.92,181.19,181.15,2.7615]
[1730199624093,3.92,181.19,181.15,5.93941466]
[1730199624297,3.92,181.19,181.17,2.7613]
[1730199624989,6.681,181.19,181.17,2.7613]
[1730199625190,6.681,181.19,181.16,2.7614]
[1730199625390,3.92,181.19,181.15,5.93941466]
[1730199627098,3.9598,181.22,181.18,5.93941466]
[1730199627289,3.92,181.21,181.2,5.93941466]
[1730199629397,3.92,181.21,181.2,8.70021466]
[1730199631300,3.92,181.21,181.18,5.93941466]
[1730199631598,9.85941466,181.21,181.15,5.93941466]
[1730199632197,2.761,181.19,181.17,2.7613]
[1730199632695,2.761,181.19,181.15,5.93941466]
[1730199633202,2.761,181.19,181.16,2.7613]
[1730199634203,2.761,181.19,181.17,5.93941466]
[1730199635398,3.92,181.21,181.19,2.761]
[1730199635700,3.92,181.21,181.18,5.93941466]
[1730199636404,2.7606,181.22,181.19,2.761]
[1730199636604,3.92,181.2,181.19,2.761]
[1730199641013,3.92,181.2,181.19,8.70041466]
[1730199641404,2.7601,181.25,181.22,2.7604]
[1730199641714,3.92,181.24,181.21,5.93941466]
[1730199642012,3.92,181.23,181.21,5.93941466]
[1730199642212,3.92,181.23,181.22,2.7605]
[1730199645918,2.422,181.29,181.24,2.7602]
[1730199646115,2.7599,181.27,181.24,8.69961466]
[1730199646418,2.7599,181.27,181.24,5.93941466]
[1730199646419,3.92,181.26,181.24,5.93941466]
[1730199647109,3.92,181.26,181.24,8.69951466]
[1730199655227,2.7599,181.27,181.24,8.69951466]
[1730199656520,2.422,181.29,181.24,5.93941466]
[1730199656720,2.7597,181.28,181.25,2.7601]
[1730199660131,1.1848,181.29,181.24,5.93941466]
[1730199660434,1.1848,181.29,181.16,1.2724]
[1730199660435,3.9443,181.29,181.26,8.69921466]
[1730199661530,5.93941466,181.28,181.22,2.7604]
[1730199661725,5.93941466,181.24,181.16,344.0]
[1730199661926,8.70952932,181.24,181.18,5.93941466]
[1730199662335,8.70952932,181.24,181.2,2.7608]
[1730199662336,2.7604,181.23,181.2,2.7608]
[1730199665827,2.7604,181.23,181.19,5.93941466]
[1730199665828,5.93941466,181.25,181.19,5.93941466]
[1730199666028,2.7602,181.25,181.22,8.69991466]
[1730199666529,1.2128,181.27,181.22,5.93941466]
[1730199666835,5.93941466,181.28,181.24,2.7602]
[1730199668027,2.7598,181.27,181.24,2.7602]
[1730199668424,5.93941466,181.27,181.15,2.4839]
[1730199668628,2.7601,181.25,181.2,5.93941466]
[1730199668933,5.93941466,181.27,181.2,5.93941466]
[1730199669631,2.7602,181.25,181.21,2.7606]
[1730199670633,8.69991466,181.23,181.2,2.7608]
[1730199672747,5.93941466,181.23,181.19,2.761]
[1730199673630,2.7606,181.22,181.19,2.761]
[1730199674030,5.93941466,181.23,181.19,2.761]
[1730199674237,5.93941466,181.2,181.1,1.2973]
[1730199674430,5.93941466,181.18,181.15,2.7616]
[1730199674829,8.70071466,181.18,181.15,2.7616]
[1730199675025,5.93941466,181.18,181.13,5.93941466]
[1730199675230,2.7614,181.17,181.14,2.7617]
[1730199675841,2.7614,181.17,181.15,2.7616]
[1730199676141,2.7614,181.17,181.13,5.93941466]
[1730199676835,2.7614,181.17,181.14,2.7617]
[1730199681136,2.7614,181.17,181.15,2.7616]
[1730199689645,8.70061466,181.18,181.15,2.7616]
[1730199696849,1.2502,181.23,181.16,5.93941466]
[1730199697053,1.2502,181.23,181.19,5.93941466]
[1730199697259,7.22221466,181.24,181.19,5.93941466]
[1730199697451,5.93941466,181.24,181.19,5.93941466]
[1730199697661,2.80952567,181.25,181.2,5.93941466]
[1730199698149,2.7603,181.24,181.21,2.7606]
[1730199700665,5.93941466,181.22,181.15,5.93941466]
[1730199700860,5.93941466,181.2,181.15,5.93941466]
[1730199701657,5.93941466,181.2,181.12,2.3959]
[1730199701960,5.93941466,181.2,181.15,5.93941466]
[1730199702465,2.7611,181.19,181.16,2.7613]
[1730199703757,5.93941466,181.19,181.14,5.93941466]
[1730199703966,2.7613,181.18,181.14,2.7616]
[1730199704265,2.7613,181.18,181.13,5.93941466]
[1730199704861,2.7613,181.18,181.15,2.7615]
[1730199706969,2.7614,181.17,181.14,2.7617]
[1730199708060,2.7614,181.17,181.13,5.93941466]
[1730199708260,2.7614,181.17,181.14,2.7617]
[1730199709169,2.7614,181.17,181.15,2.7616]
[1730199709370,2.7614,181.17,181.13,5.93941466]
[1730199709671,2.7614,181.17,181.14,2.7617]
[1730199709869,2.7614,181.17,181.13,5.93941466]
[1730199710570,2.7614,181.17,181.14,2.7617]
[1730199711966,2.7614,181.17,181.15,2.7616]
[1730199712167,2.74392821,181.21,181.14,5.93941466]
[1730199712372,7.23451466,181.22,181.16,5.93941466]
[1730199712565,2.7608,181.21,181.18,2.761]
[1730199712764,2.7608,181.21,181.16,5.93941466]
[1730199712964,2.7608,181.21,181.17,5.93941466]
[1730199713165,2.7608,181.21,181.18,2.7611]
[1730199719570,8.70021466,181.21,181.18,2.7611]
[1730199723469,2.7609,181.2,181.18,2.7611]
[1730199723665,5.93941466,181.23,181.2,2.7608]
[1730199724478,2.4668,181.28,181.19,5.93941466]
[1730199724677,5.93941466,181.25,181.19,5.93941466]
[1730199724875,8.74633276,181.25,181.19,5.93941466]
[1730199725581,8.74633276,181.25,181.21,2.7606]
[1730199725582,2.7603,181.24,181.21,2.7606]
[1730199727375,2.7603,181.24,181.19,5.93941466]
[1730199727376,8.69961466,181.25,181.22,2.7605]
[1730199727677,5.93941466,181.23,181.17,5.93941466]
[1730199728075,5.93941466,181.22,181.16,5.93941466]
[1730199728271,5.93941466,181.2,181.14,5.93941466]
[1730199728677,8.70041466,181.2,181.14,5.93941466]
[1730199729376,2.761,181.19,181.16,2.7613]
[1730199729768,5.93941466,181.2,181.16,2.7613]
[1730199729973,2.761,181.19,181.16,2.7613]
[1730199730176,5.93941466,181.18,181.14,2.7617]
[1730199731178,2.7614,181.17,181.15,2.7616]
[1730199731375,2.7614,181.17,181.12,5.93941466]
[1730199732182,1.3012,181.22,181.14,5.93941466]
[1730199732375,1.3012,181.22,181.15,5.93941466]
[1730199732575,7.24061466,181.22,181.15,5.93941466]
[1730199732879,1.1889,181.23,181.17,5.93941466]
[1730199733077,5.93941466,181.23,181.18,5.93941466]
[1730199733380,8.69991466,181.23,181.18,5.93941466]
[1730199733577,1.2936,181.27,181.2,5.93941466]
[1730199733578,5.93941466,181.25,181.2,5.93941466]
[1730199735281,2.7603,181.24,181.21,2.7606]
[1730199735684,2.7603,181.24,181.2,8.70021466]
[1730199739084,2.7605,181.23,181.2,8.70021466]
[1730199739278,5.93941466,181.25,181.19,2.761]
[1730199739685,5.93941466,181.22,181.16,5.93941466]
[1730199740584,2.81011227,181.25,181.11,349.5242]
[1730199740585,2.7612,181.18,181.15,2.7616]
[1730199741376,2.7611,181.19,181.15,2.7616]
[1730199741575,2.7611,181.19,181.16,2.7614]
[1730199744982,5.93941466,181.2,181.14,5.93941466]
[1730199745181,2.7613,181.18,181.15,2.7616]
[1730199746290,2.7613,181.17,181.14,2.7617]
[1730199748292,2.7613,181.17,181.15,2.7616]
[1730199753195,5.93941466,181.2,181.14,5.93941466]
[1730199753495,2.7608,181.21,181.18,2.7611]
[1730199753793,1.2936,181.27,181.19,5.93941466]
[1730199753987,2.7605,181.23,181.2,2.7607]
[1730199754189,5.93941466,181.24,181.2,2.7607]
[1730199756599,5.93941466,181.24,181.11,5.5244]
[1730199756600,7.23301466,181.27,181.23,2.7603]
[1730199757194,1.2936,181.27,181.22,5.93941466]
[1730199757493,7.17641466,181.29,181.23,5.93941466]
[1730199758292,7.17641466,181.29,181.26,2.7599]
[1730199760305,7.17641466,181.29,181.25,2.76]
[1730199762895,7.17641466,181.29,181.26,2.7599]
[1730199763900,9.93591466,181.29,181.26,2.7599]
[1730199770401,2.7597,181.28,181.16,1.1995]
[1730199770602,2.7597,181.28,181.23,5.93941466]
[1730199771511,2.7597,181.28,181.25,2.76]
[1730199772611,9.93591466,181.29,181.26,2.7599]
[1730199772812,2.7595,181.29,181.26,2.7599]
[1730199773807,5.93941466,181.31,181.25,5.93941466]
[1730199774014,2.7594,181.3,181.27,2.7597]
[1730199775213,1.2872,181.33,181.27,5.93941466]
[1730199775606,1.2872,181.33,181.29,5.93941466]
[1730199776207,4.0462,181.33,181.3,2.7593]
[1730199778920,8.69851466,181.32,181.28,2.7595]
[1730199779125,5.93941466,181.31,181.28,2.7595]
[1730199779614,5.93941466,181.29,181.26,2.7598]
[1730199779814,5.93941466,181.29,181.23,5.93941466]
[1730199780520,1.2006,181.32,181.21,1.2653]
[1730199780714,5.93941466,181.25,181.17,345.2896]
[1730199780920,5.93941466,181.25,181.22,2.7604]
[1730199784330,1.2006,181.32,181.21,5.93941466]
[1730199784525,5.93941466,181.28,181.21,5.93941466]
[1730199784718,1.2006,181.32,181.23,5.93941466]
[1730199784923,5.93941466,181.29,181.26,2.7598]
[1730199785626,1.2006,181.32,181.27,2.7598]
[1730199785627,5.93941466,181.31,181.27,2.7598]
[1730199785822,5.93941466,181.31,181.25,5.93941466]
[1730199786429,1.2006,181.32,181.26,5.93941466]
[1730199786628,1.2872,181.33,181.28,5.93941466]
[1730199786816,7.18681466,181.34,181.3,2.7593]
[1730199788534,5.93941466,181.31,181.28,2.7595]
[1730199789230,5.93941466,181.31,181.29,2.7594]
[1730199792031,5.93941466,181.31,181.25,5.93941466]
[1730199792333,5.93941466,181.31,181.3,2.7593]
[1730199793736,2.5107,181.34,181.27,5.93941466]
[1730199793938,1.2474,181.34,181.32,2.7589]
[1730199794432,5.93941466,181.35,181.32,2.7589]
[1730199794637,1.2068,181.36,181.32,5.93941466]
[1730199794843,126.77818625,181.37,181.32,5.93941466]
[1730199795233,126.77818625,181.37,181.36,2.7584]
[1730199797338,5.93941466,181.41,181.38,2.758]
[1730199798043,8.63831337,181.41,181.38,2.758]
[1730199798233,5.93941466,181.41,181.37,5.93941466]
[1730199798541,5.93941466,181.41,181.38,2.7581]
[1730199801540,5.50894739,181.42,181.38,2.7581]
[1730199803140,5.50894739,181.42,181.37,5.93941466]
[1730199804340,11.44836205,181.42,181.37,5.93941466]
[1730199805146,5.93941466,181.4,181.25,345.2171]
[1730199805341,5.93941466,181.4,181.33,2.7588]
[1730199805649,5.93941466,181.4,181.35,5.93941466]
[1730199805836,8.69731466,181.4,181.35,5.93941466]
[1730199808334,5.93941466,181.4,181.35,5.93941466]
[1730199809248,2.7583,181.38,181.35,5.93941466]
[1730199810643,2.7587,181.35,181.25,1.2171]
[1730199810850,5.93941466,181.37,181.31,5.93941466]
[1730199811344,2.7585,181.36,181.31,8.69861466]
[1730199812244,2.7589,181.33,181.28,2.7595]
[1730199812445,2.7589,181.33,181.28,8.69891466]
[1730199812646,5.93941466,181.33,181.26,5.93941466]
[1730199812838,2.7593,181.31,181.27,2.7598]
[1730199813847,8.69891466,181.29,181.25,8.69941466]
[1730199814044,5.93941466,181.29,181.25,5.93941466]
[1730199814250,5.93941466,181.31,181.25,5.93941466]
[1730199815448,2.7594,181.3,181.26,2.7599]
[1730199815644,2.7594,181.3,181.26,8.69931466]
[1730199824657,2.7594,181.3,181.26,2.7599]
[1730199825052,2.7602,181.25,181.21,2.7606]
[1730199825253,5.93941466,181.25,181.2,5.93941466]
[1730199825550,5.93941466,181.25,181.15,2.478]
[1730199825551,5.93941466,181.24,181.15,2.478]
[1730199825747,8.69971466,181.24,181.2,2.7608]
[1730199826956,8.69951466,181.25,181.2,5.93941466]
[1730199827147,5.93941466,181.25,181.2,5.93941466]
[1730199827956,8.69961466,181.25,181.21,2.7606]
[1730199828461,2.7602,181.25,181.2,5.93941466]
[1730199829763,2.7602,181.25,181.21,2.7606]
[1730199829951,2.7602,181.25,181.21,8.70001466]
[1730199831361,2.7602,181.25,181.22,2.7605]
[1730199833759,2.7602,181.25,181.21,2.7606]
[1730199833954,8.69961466,181.25,181.21,2.7606]
[1730199834155,2.7602,181.25,181.21,2.7606]
[1730199836551,2.7602,181.25,181.22,2.7605]
[1730199840563,8.69961466,181.25,181.21,2.7607]
[1730199841266,5.93941466,181.25,181.15,2.478]
[1730199841462,5.93941466,181.23,181.18,8.70041466]
[1730199841657,5.93941466,181.21,181.16,5.93941466]
[1730199842164,2.7606,181.22,181.19,2.761]
[1730199843366,4.05307443,181.28,181.17,5.93941466]
[1730199843562,4.05307443,181.28,181.19,5.93941466]
[1730199843764,4.05307443,181.28,181.22,5.93941466]
[1730199843959,5.93941466,181.26,181.21,5.93941466]
[1730199844160,8.69941466,181.26,181.22,2.7605]
[1730199844662,2.76,181.26,181.22,2.7605]
[1730199844857,5.93941466,181.25,181.22,2.7605]
[1730199845060,8.69951466,181.25,181.22,2.7605]
[1730199846667,2.7599,181.27,181.23,2.7603]
[1730199853665,5.93941466,181.26,181.23,2.7603]
[1730199853864,8.69941466,181.26,181.23,2.7603]
[1730199858076,2.76,181.26,181.23,2.7603]
[1730199860871,2.7598,181.27,181.23,2.7603]
[1730199865374,11.45338909,181.28,181.24,2.7601]
[1730199865677,11.45338909,181.28,181.22,5.93941466]
[1730199865678,2.75427443,181.28,181.22,5.93941466]
[1730199865879,2.75427443,181.28,181.25,2.76]
[1730199866272,1.2144,181.29,181.24,5.93941466]
[1730199866480,2.7594,181.3,181.25,5.93941466]
[1730199866775,2.71502247,181.31,181.27,5.93941466]
[1730199866976,1.2924,181.33,181.27,5.93941466]
[1730199867480,1.2924,181.33,181.28,5.93941466]
[1730199867875,4.0514,181.33,181.29,2.7594]
[1730199868184,2.759,181.33,181.29,2.7594]
[1730199869285,9.88221466,181.34,181.3,2.7592]
[1730199869577,3.9428,181.34,181.3,8.69861466]
[1730199870383,1.184,181.34,181.31,2.7591]
[1730199871375,3.9427,181.34,181.31,2.7591]
[1730199871887,2.7587,181.34,181.2,5.5216]
[1730199872078,2.7587,181.34,181.3,2.7593]
[1730199872679,5.93941466,181.33,181.26,5.93941466]
[1730199872886,2.70681713,181.32,181.26,5.93941466]
[1730199874175,2.7593,181.31,181.23,2.7603]
[1730199874373,2.7593,181.31,181.26,5.93941466]
[1730199874788,2.7593,181.31,181.27,2.7597]
[1730199875884,2.7595,181.3,181.26,2.7599]
[1730199876084,5.93941466,181.3,181.23,5.93941466]
[1730199876279,5.93941466,181.3,181.18,344.0]
[1730199876488,5.93941466,181.28,181.16,347.8021]
[1730199876683,5.93941466,181.25,181.16,347.8021]
[1730199876884,5.93941466,181.25,181.19,5.93941466]
[1730199877887,5.93941466,181.25,181.23,2.7604]
[1730199877888,8.69951466,181.25,181.23,2.7604]
[1730199878489,5.93941466,181.25,181.16,347.8021]
[1730199878894,5.93941466,181.25,181.18,5.93941466]
[1730199879286,5.93941466,181.25,181.21,2.7607]
[1730199880287,2.7603,181.24,181.21,2.7607]
[1730199882694,2.7603,181.24,181.22,2.7605]
[1730199882888,5.93941466,181.25,181.22,2.7605]
[1730199883090,8.69951466,181.25,181.22,2.7605]
[1730199885198,5.93941466,181.25,181.2,2.7607]
[1730199885400,5.93941466,181.25,181.19,5.93941466]
[1730199886611,8.69951466,181.25,181.22,2.7604]
[1730199888196,5.93941466,181.25,181.19,5.93941466]
[1730199888802,8.69941466,181.26,181.23,2.7603]
[1730199890102,5.93941466,181.26,181.21,5.93941466]
[1730199890302,5.93941466,181.26,181.24,2.7601]
[1730199890599,5.93941466,181.26,181.21,5.93941466]
[1730199890600,5.93941466,181.29,181.22,5.93941466]
[1730199890997,5.93941466,181.29,181.26,2.7598]
[1730199891599,5.93941466,181.29,181.27,2.7597]
[1730199891799,5.93941466,181.3,181.27,2.7597]
[1730199892496,5.93941466,181.3,181.25,2.76]
[1730199892697,11.40533179,181.32,181.26,5.93941466]
[1730199893092,8.69851466,181.32,181.28,2.7595]
[1730199893494,2.70686813,181.31,181.28,2.7595]
[1730199893904,5.93941466,181.32,181.29,2.7594]
[1730199894300,8.68826258,181.32,181.29,2.7594]
[1730199894502,8.69821466,181.34,181.3,2.7593]
[1730199897800,3.7199,181.37,181.29,5.93941466]
[1730199898115,2.7587,181.35,181.31,2.7591]
[1730199898810,5.93941466,181.36,181.31,2.7591]
[1730199899109,2.7587,181.34,181.31,2.7591]
[1730199900399,3.7199,181.37,181.29,2.7594]
[1730199900400,8.69841466,181.33,181.29,2.7594]
[1730199903410,2.7592,181.31,181.23,3.5517]
[1730199903614,5.49446328,181.31,181.26,5.93941466]
[1730199904213,5.49446328,181.31,181.27,5.93941466]
[1730199904614,20.2999,181.37,181.28,5.93941466]
[1730199904807,2.759,181.33,181.29,2.7594]
[1730199905003,2.77530096,181.32,181.3,5.93941466]
[1730199905207,2.759,181.33,181.3,5.93941466]
[1730199905411,2.7588,181.34,181.31,2.759]
[1730199907220,2.7588,181.34,181.3,8.69861466]
[1730199908324,2.7592,181.31,181.26,2.7598]
[1730199908623,8.69861466,181.31,181.25,5.93941466]
[1730199908820,5.93941466,181.31,181.28,2.7595]
[1730199909710,2.7591,181.32,181.29,2.7594]
[1730199910721,2.7588,181.34,181.3,2.7592]
[1730199911518,5.93941466,181.35,181.29,5.93941466]
[1730199911718,9.65931466,181.37,181.3,5.93941466]
[1730199912421,2.7585,181.36,181.32,2.7589]
[1730199912625,3.7199,181.37,181.32,5.93941466]
[1730199912817,2.4997,181.37,181.32,5.93941466]
[1730199913017,2.7585,181.36,181.32,8.69841466]
[1730199913213,2.7585,181.36,181.32,5.93941466]
[1730199914223,2.7585,181.36,181.33,2.7589]
[1730199915631,2.7585,181.36,181.32,8.69841466]
[1730199916531,2.7585,181.36,181.32,5.93941466]
[1730199916836,2.7585,181.36,181.33,2.7589]
[1730199917029,2.7585,181.36,181.32,5.93941466]
[1730199917230,3.9599,181.37,181.32,5.93941466]
[1730199917633,3.9599,181.37,181.33,2.7588]
[1730199918739,2.7584,181.37,181.33,2.7588]
[1730199918940,2.7584,181.37,181.34,5.93941466]
[1730199919239,5.93941466,181.38,181.34,5.93941466]
[1730199919441,2.7579,181.4,181.37,2.7582]
[1730199919642,2.7579,181.4,181.35,5.93941466]